[Event "Titled Tuesday Blitz January 31 Late 2023"]
[White "Bartel, Mateusz"]
[Black "Kim, Sergey"]
[WhiteFideId "1112635"]
[BlackFideId "13700570"]
[WhiteElo "2609"]
[BlackElo "2295"]
[Result "0-1"]
[Round "05"]
[TimeControl "180+2"]
[Date "2023.01.31"]
[WhiteClock "0:01:12"]
[BlackClock "0:01:40"]

1. Nf3 {[%clk 0:03:00]}  Nf6 {[%clk 0:02:59]} 2. c4 {[%clk 0:02:59]}  g6 {[%clk 0:02:59]} 3. Nc3 {[%clk 0:02:58]}  Bg7 {[%clk 0:03:00]} 4. e4 {[%clk 0:02:58]}  d6 {[%clk 0:03:00]} 5. d4 {[%clk 0:02:58]}  O-O {[%clk 0:03:00]} 6. h3 {[%clk 0:02:59]}  e5 {[%clk 0:03:00]} 7. d5 {[%clk 0:02:59]}  a5 {[%clk 0:02:59]} 8. Be3 {[%clk 0:02:55]}  Na6 {[%clk 0:02:59]} 9. Nd2 {[%clk 0:02:55]}  Nc5 {[%clk 0:02:59]} 10. g4 {[%clk 0:02:53]}  Bd7 {[%clk 0:02:59]} 11. Rg1 {[%clk 0:02:51]}  a4 {[%clk 0:02:58]} 12. h4 {[%clk 0:02:51]}  c6 {[%clk 0:02:55]} 13. h5 {[%clk 0:02:49]}  Ne8 {[%clk 0:02:53]} 14. g5 {[%clk 0:02:46]}  Nc7 {[%clk 0:02:52]} 15. h6 {[%clk 0:02:46]}  Bh8 {[%clk 0:02:51]} 16. Qf3 {[%clk 0:02:19]}  cxd5 {[%clk 0:02:45]} 17. cxd5 {[%clk 0:02:10]}  b5 {[%clk 0:02:44]} 18. a3 {[%clk 0:02:10]}  Rb8 {[%clk 0:02:40]} 19. Na2 {[%clk 0:02:10]}  N7a6 {[%clk 0:02:34]} 20. Rc1 {[%clk 0:01:57]}  f6 {[%clk 0:02:31]} 21. Qg3 {[%clk 0:01:47]}  f5 {[%clk 0:02:24]} 22. Bxc5 {[%clk 0:01:44]}  Nxc5 {[%clk 0:02:23]} 23. f3 {[%clk 0:01:31]}  Qb6 {[%clk 0:02:18]} 24. Nb4 {[%clk 0:01:28]}  fxe4 {[%clk 0:02:07]} 25. fxe4 {[%clk 0:01:26]}  Rf4 {[%clk 0:02:06]} 26. Qe3 {[%clk 0:01:22]}  Nd3+ {[%clk 0:01:54]} 27. Qxd3 {[%clk 0:01:16]}  Qxg1 {[%clk 0:01:53]} 28. Rc7 {[%clk 0:01:12]}  Bg4 {[%clk 0:01:40]} 0-1


[Site "https://www.chess.com"]

[Event "Titled Tuesday Blitz January 31 Late 2023"]
[White "Dobrikov, Marco"]
[Black "Tactrics"]
[WhiteFideId "12950378"]
[WhiteElo "2269"]
[BlackElo "2794"]
[Result "0-1"]
[Round "05"]
[TimeControl "180+2"]
[Date "2023.01.31"]
[WhiteClock "0:00:14"]
[BlackClock "0:00:13"]

1. c4 {[%clk 0:03:00]}  c5 {[%clk 0:03:00]} 2. Nc3 {[%clk 0:02:56]}  Nf6 {[%clk 0:02:59]} 3. g3 {[%clk 0:02:55]}  e6 {[%clk 0:02:54]} 4. Nf3 {[%clk 0:02:55]}  b6 {[%clk 0:02:53]} 5. Bg2 {[%clk 0:02:55]}  Bb7 {[%clk 0:02:53]} 6. O-O {[%clk 0:02:55]}  Be7 {[%clk 0:02:54]} 7. d4 {[%clk 0:02:41]}  cxd4 {[%clk 0:02:54]} 8. Nxd4 {[%clk 0:02:42]}  Bxg2 {[%clk 0:02:53]} 9. Kxg2 {[%clk 0:02:43]}  Qc8 {[%clk 0:02:54]} 10. Qd3 {[%clk 0:02:26]}  O-O {[%clk 0:02:43]} 11. e4 {[%clk 0:02:26]}  d6 {[%clk 0:02:36]} 12. f3 {[%clk 0:02:23]}  Nbd7 {[%clk 0:02:36]} 13. b3 {[%clk 0:02:21]}  a6 {[%clk 0:02:36]} 14. Be3 {[%clk 0:02:21]}  Qb7 {[%clk 0:02:36]} 15. Rac1 {[%clk 0:02:20]}  Rac8 {[%clk 0:02:36]} 16. Rfd1 {[%clk 0:02:21]}  Rfe8 {[%clk 0:02:34]} 17. Qd2 {[%clk 0:02:20]}  Bf8 {[%clk 0:02:33]} 18. Qf2 {[%clk 0:02:07]}  Rc7 {[%clk 0:02:24]} 19. Rd2 {[%clk 0:02:06]}  Rec8 {[%clk 0:02:24]} 20. Rdc2 {[%clk 0:02:05]}  g6 {[%clk 0:02:17]} 21. Qd2 {[%clk 0:02:05]}  Bg7 {[%clk 0:02:15]} 22. Nde2 {[%clk 0:02:04]}  Bf8 {[%clk 0:02:11]} 23. Nd4 {[%clk 0:02:04]}  Ne5 {[%clk 0:02:11]} 24. a4 {[%clk 0:01:40]}  Nfd7 {[%clk 0:02:09]} 25. h3 {[%clk 0:01:35]}  Nc5 {[%clk 0:02:04]} 26. Rd1 {[%clk 0:01:33]}  Bg7 {[%clk 0:01:53]} 27. Qe2 {[%clk 0:01:32]}  h5 {[%clk 0:01:42]} 28. Kg1 {[%clk 0:01:27]}  Qa8 {[%clk 0:01:30]} 29. f4 {[%clk 0:01:27]}  Ned7 {[%clk 0:01:24]} 30. Bf2 {[%clk 0:01:24]}  Nf6 {[%clk 0:01:20]} 31. Re1 {[%clk 0:01:19]}  Qb7 {[%clk 0:01:18]} 32. g4 {[%clk 0:01:11]}  hxg4 {[%clk 0:01:16]} 33. hxg4 {[%clk 0:01:12]}  e5 {[%clk 0:01:15]} 34. fxe5 {[%clk 0:01:09]}  dxe5 {[%clk 0:01:16]} 35. Nf3 {[%clk 0:01:07]}  Nxg4 {[%clk 0:01:10]} 36. Nd5 {[%clk 0:01:08]}  Rd7 {[%clk 0:01:09]} 37. Bh4 {[%clk 0:01:06]}  Ne6 {[%clk 0:01:04]} 38. Qg2 {[%clk 0:00:55]}  f5 {[%clk 0:00:56]} 39. exf5 {[%clk 0:00:50]}  gxf5 {[%clk 0:00:56]} 40. Nxe5 {[%clk 0:00:48]}  Bxe5 {[%clk 0:00:47]} 41. Rxe5 {[%clk 0:00:48]}  Nd4 {[%clk 0:00:39]} 42. Rd2 {[%clk 0:00:37]}  Nxb3 {[%clk 0:00:36]} 43. Rde2 {[%clk 0:00:35]}  Rxc4 {[%clk 0:00:24]} 44. Re8+ {[%clk 0:00:33]}  Kf7 {[%clk 0:00:22]} 45. R2e7+ {[%clk 0:00:30]}  Rxe7 {[%clk 0:00:17]} 46. Rxe7+ {[%clk 0:00:24]}  Qxe7 {[%clk 0:00:17]} 47. Bxe7 {[%clk 0:00:22]}  Rc1+ {[%clk 0:00:16]} 48. Qf1 {[%clk 0:00:23]}  Rxf1+ {[%clk 0:00:17]} 49. Kxf1 {[%clk 0:00:24]}  Ke6 {[%clk 0:00:15]} 50. Nxb6 {[%clk 0:00:13]}  Kxe7 {[%clk 0:00:15]} 51. Ke2 {[%clk 0:00:13]}  Kd6 {[%clk 0:00:14]} 52. Kf3 {[%clk 0:00:14]}  Kc5 {[%clk 0:00:13]} 53. Nd7+ {[%clk 0:00:14]}  Kb4 {[%clk 0:00:13]} 0-1


[Site "https://www.chess.com"]

[Event "Titled Tuesday Blitz January 31 Late 2023"]
[White "Bryakin, Mikhail"]
[Black "Tworuszka, Michal"]
[WhiteFideId "4165314"]
[BlackFideId "1117858"]
[WhiteElo "2455"]
[BlackElo "2260"]
[Result "1-0"]
[Round "05"]
[TimeControl "180+2"]
[Date "2023.01.31"]
[WhiteClock "0:01:26"]
[BlackClock "0:00:04"]

1. e4 {[%clk 0:02:54]}  c5 {[%clk 0:02:59]} 2. Bb5 {[%clk 0:02:42]}  a6 {[%clk 0:02:57]} 3. Be2 {[%clk 0:02:43]}  Nc6 {[%clk 0:02:54]} 4. f4 {[%clk 0:02:41]}  g6 {[%clk 0:02:54]} 5. Nf3 {[%clk 0:02:41]}  Nf6 {[%clk 0:02:50]} 6. d3 {[%clk 0:02:40]}  Bg7 {[%clk 0:02:49]} 7. O-O {[%clk 0:02:41]}  d5 {[%clk 0:02:49]} 8. e5 {[%clk 0:02:39]}  Ng4 {[%clk 0:02:44]} 9. h3 {[%clk 0:02:38]}  Nh6 {[%clk 0:02:44]} 10. c4 {[%clk 0:02:39]}  d4 {[%clk 0:02:33]} 11. Nbd2 {[%clk 0:02:38]}  f6 {[%clk 0:02:28]} 12. Ne4 {[%clk 0:02:38]}  b6 {[%clk 0:02:26]} 13. a3 {[%clk 0:02:30]}  a5 {[%clk 0:02:19]} 14. Bd2 {[%clk 0:02:25]}  O-O {[%clk 0:02:19]} 15. Rb1 {[%clk 0:02:20]}  a4 {[%clk 0:01:57]} 16. b4 {[%clk 0:02:18]}  axb3 {[%clk 0:01:57]} 17. Qxb3 {[%clk 0:02:19]}  Ra6 {[%clk 0:01:53]} 18. Rf2 {[%clk 0:02:06]}  Nf7 {[%clk 0:01:45]} 19. Rbf1 {[%clk 0:02:04]}  h6 {[%clk 0:01:29]} 20. exf6 {[%clk 0:01:53]}  exf6 {[%clk 0:01:29]} 21. Nh4 {[%clk 0:01:51]}  Ne7 {[%clk 0:01:21]} 22. Ng3 {[%clk 0:01:45]}  f5 {[%clk 0:01:15]} 23. Bd1 {[%clk 0:01:35]}  Kh7 {[%clk 0:01:13]} 24. Nf3 {[%clk 0:01:36]}  Nc6 {[%clk 0:01:12]} 25. Re1 {[%clk 0:01:36]}  Bd7 {[%clk 0:01:10]} 26. Rfe2 {[%clk 0:01:34]}  Re8 {[%clk 0:01:07]} 27. Bc1 {[%clk 0:01:33]}  Rxe2 {[%clk 0:01:07]} 28. Rxe2 {[%clk 0:01:34]}  Ne7 {[%clk 0:01:01]} 29. Qc2 {[%clk 0:01:34]}  Ba4 {[%clk 0:01:00]} 30. Qd2 {[%clk 0:01:34]}  Bxd1 {[%clk 0:01:00]} 31. Qxd1 {[%clk 0:01:35]}  Nc6 {[%clk 0:00:59]} 32. Qe1 {[%clk 0:01:36]}  Qd7 {[%clk 0:00:56]} 33. Nh4 {[%clk 0:01:35]}  Ra7 {[%clk 0:00:53]} 34. Re6 {[%clk 0:01:33]}  Nh8 {[%clk 0:00:46]} 35. Qe2 {[%clk 0:01:29]}  Nd8 {[%clk 0:00:43]} 36. Rxb6 {[%clk 0:01:27]}  Qe7 {[%clk 0:00:41]} 37. Qxe7 {[%clk 0:01:25]}  Rxe7 {[%clk 0:00:41]} 38. Kf2 {[%clk 0:01:26]}  Rb7 {[%clk 0:00:34]} 39. Rxb7 {[%clk 0:01:24]}  Nxb7 {[%clk 0:00:34]} 40. a4 {[%clk 0:01:25]}  Nf7 {[%clk 0:00:28]} 41. Bd2 {[%clk 0:01:25]}  Bf8 {[%clk 0:00:23]} 42. a5 {[%clk 0:01:24]}  Nbd8 {[%clk 0:00:22]} 43. a6 {[%clk 0:01:24]}  Nc6 {[%clk 0:00:22]} 44. Ba5 {[%clk 0:01:24]}  Bd6 {[%clk 0:00:18]} 45. Bb6 {[%clk 0:01:24]}  Bxf4 {[%clk 0:00:17]} 46. a7 {[%clk 0:01:23]}  Nxa7 {[%clk 0:00:15]} 47. Bxa7 {[%clk 0:01:24]}  Ne5 {[%clk 0:00:14]} 48. Ne2 {[%clk 0:01:24]}  Nxd3+ {[%clk 0:00:14]} 49. Kf1 {[%clk 0:01:25]}  Bg5 {[%clk 0:00:11]} 50. Nf3 {[%clk 0:01:26]}  Nb2 {[%clk 0:00:11]} 51. Nxg5+ {[%clk 0:01:25]}  hxg5 {[%clk 0:00:10]} 52. Bxc5 {[%clk 0:01:26]}  d3 {[%clk 0:00:09]} 53. Nc3 {[%clk 0:01:26]}  Nxc4 {[%clk 0:00:06]} 54. Kf2 {[%clk 0:01:26]}  Kg8 {[%clk 0:00:04]} 55. Bd4 {[%clk 0:01:26]}  Kf7 {[%clk 0:00:04]} 56. Kf3 {[%clk 0:01:27]}  Ke6 {[%clk 0:00:04]} 57. g4 {[%clk 0:01:26]} 1-0


[Site "https://www.chess.com"]

[Event "Titled Tuesday Blitz January 31 Late 2023"]
[White "Bortnyk, Olexandr"]
[Black "Blomqvist, Erik"]
[WhiteFideId "14120828"]
[BlackFideId "1709437"]
[WhiteElo "2605"]
[BlackElo "2523"]
[Result "1-0"]
[Round "05"]
[TimeControl "180+2"]
[Date "2023.01.31"]
[WhiteClock "0:00:41"]
[BlackClock "0:00:02"]

1. d4 {[%clk 0:03:00]}  d5 {[%clk 0:02:58]} 2. Nc3 {[%clk 0:03:01]}  Nf6 {[%clk 0:02:56]} 3. Bf4 {[%clk 0:03:01]}  c5 {[%clk 0:02:56]} 4. e4 {[%clk 0:03:01]}  cxd4 {[%clk 0:02:47]} 5. Qxd4 {[%clk 0:03:02]}  Nc6 {[%clk 0:02:47]} 6. Bb5 {[%clk 0:03:01]}  Bd7 {[%clk 0:02:37]} 7. Bxc6 {[%clk 0:03:01]}  Bxc6 {[%clk 0:02:33]} 8. e5 {[%clk 0:03:01]}  Nd7 {[%clk 0:02:08]} 9. e6 {[%clk 0:03:02]}  fxe6 {[%clk 0:02:07]} 10. Nf3 {[%clk 0:03:03]}  Qb6 {[%clk 0:02:06]} 11. Qd2 {[%clk 0:03:00]}  g6 {[%clk 0:01:57]} 12. O-O-O {[%clk 0:02:59]}  Bg7 {[%clk 0:01:57]} 13. Bh6 {[%clk 0:02:50]}  Bf6 {[%clk 0:01:46]} 14. Rhe1 {[%clk 0:02:46]}  O-O-O {[%clk 0:01:35]} 15. Be3 {[%clk 0:01:50]}  Qa5 {[%clk 0:01:25]} 16. Bd4 {[%clk 0:01:48]}  e5 {[%clk 0:00:59]} 17. Bxe5 {[%clk 0:01:15]}  Nxe5 {[%clk 0:00:49]} 18. Nxe5 {[%clk 0:01:16]}  Rhf8 {[%clk 0:00:18]} 19. Qd4 {[%clk 0:01:09]}  Bg5+ {[%clk 0:00:14]} 20. Kb1 {[%clk 0:01:10]}  Rf4 {[%clk 0:00:14]} 21. Nxc6 {[%clk 0:01:10]}  bxc6 {[%clk 0:00:14]} 22. Qe5 {[%clk 0:01:11]}  Rf5 {[%clk 0:00:06]} 23. Qe6+ {[%clk 0:01:11]}  Kb7 {[%clk 0:00:06]} 24. a3 {[%clk 0:00:47]}  Rxf2 {[%clk 0:00:04]} 25. Rd4 {[%clk 0:00:47]}  Bf6 {[%clk 0:00:04]} 26. Rb4+ {[%clk 0:00:47]}  Kc7 {[%clk 0:00:03]} 27. Qe3 {[%clk 0:00:39]}  Rxg2 {[%clk 0:00:02]} 28. Ra4 {[%clk 0:00:40]}  Qb6 {[%clk 0:00:02]} 29. Rxa7+ {[%clk 0:00:40]}  Qxa7 {[%clk 0:00:02]} 30. Qxa7+ {[%clk 0:00:41]} 1-0


[Site "https://www.chess.com"]

[Event "Titled Tuesday Blitz January 31 Late 2023"]
[White "Yuan, Qingyu"]
[Black "Sztokbant, Bernardo Vainzoff"]
[WhiteFideId "8609772"]
[BlackFideId "2115956"]
[WhiteElo "2373"]
[BlackElo "2213"]
[Result "1-0"]
[Round "05"]
[TimeControl "180+2"]
[Date "2023.01.31"]
[WhiteClock "0:02:07"]
[BlackClock "0:02:05"]

1. e4 {[%clk 0:03:00]}  c5 {[%clk 0:03:00]} 2. Nf3 {[%clk 0:03:01]}  Nc6 {[%clk 0:03:00]} 3. Bb5 {[%clk 0:03:01]}  e6 {[%clk 0:02:59]} 4. O-O {[%clk 0:03:00]}  Nge7 {[%clk 0:02:59]} 5. Re1 {[%clk 0:02:58]}  a6 {[%clk 0:02:59]} 6. Bf1 {[%clk 0:02:58]}  Ng6 {[%clk 0:02:58]} 7. c3 {[%clk 0:02:51]}  d5 {[%clk 0:02:57]} 8. exd5 {[%clk 0:02:41]}  Qxd5 {[%clk 0:02:58]} 9. d4 {[%clk 0:02:42]}  Be7 {[%clk 0:02:51]} 10. Be3 {[%clk 0:02:35]}  cxd4 {[%clk 0:02:42]} 11. cxd4 {[%clk 0:02:27]}  O-O {[%clk 0:02:41]} 12. Nc3 {[%clk 0:02:27]}  Qa5 {[%clk 0:02:37]} 13. a3 {[%clk 0:02:24]}  Rd8 {[%clk 0:02:31]} 14. Qb3 {[%clk 0:02:24]}  Bd7 {[%clk 0:02:23]} 15. d5 {[%clk 0:02:18]}  Nce5 {[%clk 0:02:04]} 16. Nxe5 {[%clk 0:02:07]}  Nxe5 {[%clk 0:02:05]} 17. Bb6 {[%clk 0:02:07]} 1-0


[Site "https://www.chess.com"]

[Event "Titled Tuesday Blitz January 31 Late 2023"]
[White "Yurovskykh, Oleksandr"]
[Black "Pulpan, Jakub"]
[WhiteFideId "14134020"]
[BlackFideId "302759"]
[WhiteElo "2328"]
[BlackElo "2427"]
[Result "1/2-1/2"]
[Round "05"]
[TimeControl "180+2"]
[Date "2023.01.31"]
[WhiteClock "0:00:11"]
[BlackClock "0:00:05"]

1. d4 {[%clk 0:03:00]}  Nf6 {[%clk 0:02:48]} 2. Nf3 {[%clk 0:02:59]}  d5 {[%clk 0:02:48]} 3. c3 {[%clk 0:02:59]}  Bf5 {[%clk 0:02:47]} 4. Qb3 {[%clk 0:02:59]}  Qc8 {[%clk 0:02:47]} 5. Bg5 {[%clk 0:02:59]}  Nbd7 {[%clk 0:02:47]} 6. e3 {[%clk 0:02:59]}  e6 {[%clk 0:02:47]} 7. c4 {[%clk 0:02:59]}  c6 {[%clk 0:02:46]} 8. Nc3 {[%clk 0:02:58]}  Bd6 {[%clk 0:02:45]} 9. Be2 {[%clk 0:02:57]}  O-O {[%clk 0:02:45]} 10. Nh4 {[%clk 0:02:57]}  Be4 {[%clk 0:02:43]} 11. f3 {[%clk 0:02:46]}  Bg6 {[%clk 0:02:43]} 12. Nxg6 {[%clk 0:02:46]}  hxg6 {[%clk 0:02:44]} 13. e4 {[%clk 0:02:38]}  e5 {[%clk 0:02:40]} 14. dxe5 {[%clk 0:02:29]}  dxc4 {[%clk 0:02:37]} 15. Bxc4 {[%clk 0:02:27]}  Bxe5 {[%clk 0:02:34]} 16. O-O-O {[%clk 0:02:17]}  Qc7 {[%clk 0:02:30]} 17. Kb1 {[%clk 0:02:14]}  b5 {[%clk 0:02:29]} 18. Be2 {[%clk 0:02:11]}  a5 {[%clk 0:02:30]} 19. Qc2 {[%clk 0:02:08]}  a4 {[%clk 0:02:21]} 20. Be3 {[%clk 0:01:42]}  Rfb8 {[%clk 0:02:00]} 21. Rc1 {[%clk 0:01:40]}  b4 {[%clk 0:02:00]} 22. Nxa4 {[%clk 0:01:38]}  b3 {[%clk 0:02:01]} 23. axb3 {[%clk 0:01:31]}  Rxa4 {[%clk 0:02:00]} 24. bxa4 {[%clk 0:01:31]}  Rxb2+ {[%clk 0:02:00]} 25. Qxb2 {[%clk 0:01:32]}  Bxb2 {[%clk 0:02:00]} 26. Kxb2 {[%clk 0:01:33]}  Nb6 {[%clk 0:01:55]} 27. Bd1 {[%clk 0:01:22]}  Qa7 {[%clk 0:01:47]} 28. Bxb6 {[%clk 0:01:17]}  Qxb6+ {[%clk 0:01:47]} 29. Bb3 {[%clk 0:01:17]}  Nd7 {[%clk 0:01:46]} 30. Rc3 {[%clk 0:00:53]}  Nc5 {[%clk 0:01:28]} 31. Ka2 {[%clk 0:00:52]}  Qb4 {[%clk 0:01:14]} 32. Rhc1 {[%clk 0:00:50]}  Nxb3 {[%clk 0:01:05]} 33. Rxb3 {[%clk 0:00:51]}  Qxa4+ {[%clk 0:01:06]} 34. Kb2 {[%clk 0:00:50]}  Qd4+ {[%clk 0:01:06]} 35. Rbc3 {[%clk 0:00:51]}  f5 {[%clk 0:01:03]} 36. exf5 {[%clk 0:00:49]}  gxf5 {[%clk 0:00:56]} 37. Rc2 {[%clk 0:00:41]}  Qb4+ {[%clk 0:00:52]} 38. Ka1 {[%clk 0:00:34]}  Qa5+ {[%clk 0:00:51]} 39. Kb1 {[%clk 0:00:34]}  Qb6+ {[%clk 0:00:52]} 40. Rb2 {[%clk 0:00:31]}  Qg1+ {[%clk 0:00:51]} 41. Ka2 {[%clk 0:00:29]}  Qxh2 {[%clk 0:00:52]} 42. Rxc6 {[%clk 0:00:27]}  Kh7 {[%clk 0:00:52]} 43. Rbc2 {[%clk 0:00:27]}  Qb8 {[%clk 0:00:51]} 44. Ka3 {[%clk 0:00:26]}  Qb1 {[%clk 0:00:50]} 45. Rc7 {[%clk 0:00:25]}  Kh6 {[%clk 0:00:50]} 46. R7c4 {[%clk 0:00:25]}  g6 {[%clk 0:00:50]} 47. R4c3 {[%clk 0:00:20]}  Kg5 {[%clk 0:00:50]} 48. Rc4 {[%clk 0:00:20]}  f4 {[%clk 0:00:49]} 49. Ka4 {[%clk 0:00:20]}  Qb8 {[%clk 0:00:47]} 50. Ka3 {[%clk 0:00:21]}  Kh4 {[%clk 0:00:47]} 51. Ka2 {[%clk 0:00:19]}  Kg3 {[%clk 0:00:47]} 52. Ka3 {[%clk 0:00:19]}  g5 {[%clk 0:00:47]} 53. Ka2 {[%clk 0:00:20]}  Kh2 {[%clk 0:00:39]} 54. Rc5 {[%clk 0:00:20]}  Qd8 {[%clk 0:00:36]} 55. Kb3 {[%clk 0:00:20]}  Kg1 {[%clk 0:00:36]} 56. Kb2 {[%clk 0:00:20]}  Qd4+ {[%clk 0:00:35]} 57. Kb3 {[%clk 0:00:21]}  Qd3+ {[%clk 0:00:32]} 58. Kb2 {[%clk 0:00:19]}  Qg6 {[%clk 0:00:32]} 59. R5c3 {[%clk 0:00:18]}  Kf1 {[%clk 0:00:29]} 60. Kc1 {[%clk 0:00:16]}  Ke1 {[%clk 0:00:24]} 61. Kb2 {[%clk 0:00:16]}  Qf6 {[%clk 0:00:23]} 62. Ka2 {[%clk 0:00:16]}  Qe6+ {[%clk 0:00:22]} 63. Kb2 {[%clk 0:00:16]}  Qe5 {[%clk 0:00:23]} 64. Kb3 {[%clk 0:00:17]}  Qd5+ {[%clk 0:00:22]} 65. Kb4 {[%clk 0:00:17]}  Qd4+ {[%clk 0:00:21]} 66. Kb5 {[%clk 0:00:17]}  Kf1 {[%clk 0:00:12]} 67. Rc5 {[%clk 0:00:17]}  Qd3+ {[%clk 0:00:11]} 68. Kb6 {[%clk 0:00:17]}  Kg1 {[%clk 0:00:11]} 69. Ka5 {[%clk 0:00:15]}  Qb3 {[%clk 0:00:10]} 70. R5c3 {[%clk 0:00:15]}  Qb7 {[%clk 0:00:10]} 71. Ka4 {[%clk 0:00:15]}  Kh2 {[%clk 0:00:10]} 72. Ka3 {[%clk 0:00:16]}  Kg3 {[%clk 0:00:10]} 73. Ka2 {[%clk 0:00:16]}  Kh4 {[%clk 0:00:11]} 74. Rb3 {[%clk 0:00:15]}  Qa6+ {[%clk 0:00:11]} 75. Kb2 {[%clk 0:00:16]}  Kh5 {[%clk 0:00:11]} 76. Rbc3 {[%clk 0:00:13]}  Qb5+ {[%clk 0:00:09]} 77. Kc1 {[%clk 0:00:13]}  Qb4 {[%clk 0:00:09]} 78. Kd2 {[%clk 0:00:14]}  Kh4 {[%clk 0:00:09]} 79. Kc1 {[%clk 0:00:13]}  Kg3 {[%clk 0:00:09]} 80. Rc4 {[%clk 0:00:14]}  Qb3 {[%clk 0:00:09]} 81. Rc5 {[%clk 0:00:14]}  Qa3+ {[%clk 0:00:08]} 82. Kb1 {[%clk 0:00:14]}  Qb4+ {[%clk 0:00:08]} 83. Ka2 {[%clk 0:00:15]}  Qa4+ {[%clk 0:00:07]} 84. Kb1 {[%clk 0:00:15]}  Qb3+ {[%clk 0:00:08]} 85. Kc1 {[%clk 0:00:15]}  Qg8 {[%clk 0:00:09]} 86. Ra5 {[%clk 0:00:10]}  Qg7 {[%clk 0:00:06]} 87. Rcc5 {[%clk 0:00:10]}  Kf2 {[%clk 0:00:05]} 88. Rxg5 {[%clk 0:00:11]}  Qc3+ {[%clk 0:00:05]} 89. Kb1 {[%clk 0:00:11]}  Qb3+ {[%clk 0:00:05]} 90. Ka1 {[%clk 0:00:11]}  Ke2 {[%clk 0:00:04]} 91. Rad5 {[%clk 0:00:10]}  Qa3+ {[%clk 0:00:03]} 92. Kb1 {[%clk 0:00:10]}  Qb3+ {[%clk 0:00:04]} 93. Ka1 {[%clk 0:00:09]}  Qc3+ {[%clk 0:00:04]} 94. Ka2 {[%clk 0:00:10]}  Ke3 {[%clk 0:00:04]} 95. Rde5+ {[%clk 0:00:06]}  Kf2 {[%clk 0:00:02]} 96. Kb1 {[%clk 0:00:05]}  Qb3+ {[%clk 0:00:02]} 97. Ka1 {[%clk 0:00:05]}  Qc3+ {[%clk 0:00:03]} 98. Ka2 {[%clk 0:00:06]}  Qb4 {[%clk 0:00:03]} 99. Rb5 {[%clk 0:00:03]}  Qa4+ {[%clk 0:00:03]} 100. Kb2 {[%clk 0:00:03]}  Ke2 {[%clk 0:00:03]} 101. Rge5+ {[%clk 0:00:03]}  Kf1 {[%clk 0:00:03]} 102. Rg5 {[%clk 0:00:04]}  Qc4 {[%clk 0:00:03]} 103. Rbe5 {[%clk 0:00:04]}  Qb4+ {[%clk 0:00:03]} 104. Kc2 {[%clk 0:00:05]}  Kg1 {[%clk 0:00:04]} 105. Kd3 {[%clk 0:00:05]}  Kf2 {[%clk 0:00:03]} 106. Re2+ {[%clk 0:00:05]}  Kf1 {[%clk 0:00:03]} 107. Ree5 {[%clk 0:00:05]}  Kf2 {[%clk 0:00:03]} 108. Re2+ {[%clk 0:00:04]}  Kg1 {[%clk 0:00:04]} 109. Rge5 {[%clk 0:00:05]}  Kh2 {[%clk 0:00:03]} 110. R5e4 {[%clk 0:00:06]}  Qb8 {[%clk 0:00:03]} 111. Kd4 {[%clk 0:00:06]}  Kg3 {[%clk 0:00:03]} 112. Kd5 {[%clk 0:00:07]}  Qb5+ {[%clk 0:00:04]} 113. Ke6 {[%clk 0:00:07]}  Qe8+ {[%clk 0:00:04]} 114. Kf6 {[%clk 0:00:07]}  Qf8+ {[%clk 0:00:04]} 115. Ke6 {[%clk 0:00:08]}  Kh2 {[%clk 0:00:05]} 116. Re5 {[%clk 0:00:08]}  Kg1 {[%clk 0:00:05]} 117. Kd5 {[%clk 0:00:07]}  Kf1 {[%clk 0:00:04]} 118. Kd4 {[%clk 0:00:06]}  Qf6 {[%clk 0:00:04]} 119. Kc4 {[%clk 0:00:06]}  Qa6+ {[%clk 0:00:04]} 120. Kc5 {[%clk 0:00:06]}  Qa7+ {[%clk 0:00:03]} 121. Kd6 {[%clk 0:00:07]}  Kg1 {[%clk 0:00:04]} 122. Ke6 {[%clk 0:00:07]}  Qh7 {[%clk 0:00:04]} 123. Kf6 {[%clk 0:00:07]}  Kh2 {[%clk 0:00:03]} 124. Kg5 {[%clk 0:00:07]}  Kg3 {[%clk 0:00:03]} 125. R2e4 {[%clk 0:00:06]}  Qg7+ {[%clk 0:00:03]} 126. Kf5 {[%clk 0:00:06]}  Qf7+ {[%clk 0:00:02]} 127. Kg5 {[%clk 0:00:06]}  Kxg2 {[%clk 0:00:03]} 128. Rxf4 {[%clk 0:00:05]}  Qg7+ {[%clk 0:00:03]} 129. Kf5 {[%clk 0:00:06]}  Qh7+ {[%clk 0:00:04]} 130. Ke6 {[%clk 0:00:03]}  Kg3 {[%clk 0:00:04]} 131. Rf6 {[%clk 0:00:03]}  Qb7 {[%clk 0:00:03]} 132. Rg5+ {[%clk 0:00:03]}  Kf2 {[%clk 0:00:04]} 133. Rgg6 {[%clk 0:00:03]}  Ke3 {[%clk 0:00:04]} 134. Kf5 {[%clk 0:00:03]}  Qd5+ {[%clk 0:00:03]} 135. Kg4 {[%clk 0:00:03]}  Qc4+ {[%clk 0:00:03]} 136. f4 {[%clk 0:00:03]}  Qe2+ {[%clk 0:00:03]} 137. Kg5 {[%clk 0:00:04]}  Kf3 {[%clk 0:00:04]} 138. Re6 {[%clk 0:00:03]}  Qg2+ {[%clk 0:00:04]} 139. Kf6 {[%clk 0:00:03]}  Qb2+ {[%clk 0:00:04]} 140. Kf7 {[%clk 0:00:04]}  Qb3 {[%clk 0:00:04]} 141. Rf6 {[%clk 0:00:04]}  Kg4 {[%clk 0:00:04]} 142. f5 {[%clk 0:00:05]}  Kg5 {[%clk 0:00:04]} 143. Ke7 {[%clk 0:00:05]}  Kf4 {[%clk 0:00:05]} 144. Kf7 {[%clk 0:00:05]}  Qb7+ {[%clk 0:00:05]} 145. Kg6 {[%clk 0:00:05]}  Qg2+ {[%clk 0:00:05]} 146. Kf7 {[%clk 0:00:05]}  Qd5 {[%clk 0:00:06]} 147. Ke7 {[%clk 0:00:05]}  Kg5 {[%clk 0:00:06]} 148. Rg6+ {[%clk 0:00:05]}  Kf4 {[%clk 0:00:07]} 149. f6 {[%clk 0:00:04]}  Kf5 {[%clk 0:00:07]} 150. Rg5+ {[%clk 0:00:04]}  Kxg5 {[%clk 0:00:07]} 151. f7 {[%clk 0:00:05]}  Qc5+ {[%clk 0:00:08]} 152. Ke8 {[%clk 0:00:05]}  Qc8+ {[%clk 0:00:08]} 153. Ke7 {[%clk 0:00:06]}  Qc7+ {[%clk 0:00:08]} 154. Ke8 {[%clk 0:00:06]}  Qc8+ {[%clk 0:00:08]} 155. Ke7 {[%clk 0:00:07]}  Qb7+ {[%clk 0:00:08]} 156. Ke8 {[%clk 0:00:07]}  Qb8+ {[%clk 0:00:08]} 157. Ke7 {[%clk 0:00:08]}  Qb4+ {[%clk 0:00:08]} 158. Ke8 {[%clk 0:00:08]}  Qa4+ {[%clk 0:00:09]} 159. Ke7 {[%clk 0:00:08]}  Qa3+ {[%clk 0:00:09]} 160. Ke8 {[%clk 0:00:09]}  Qa4+ {[%clk 0:00:09]} 161. Ke7 {[%clk 0:00:09]}  Qb4+ {[%clk 0:00:09]} 162. Ke8 {[%clk 0:00:10]}  Qb8+ {[%clk 0:00:05]} 163. Ke7 {[%clk 0:00:10]}  Qc7+ {[%clk 0:00:05]} 164. Ke8 {[%clk 0:00:11]}  Qc8+ {[%clk 0:00:05]} 1/2-1/2


[Site "https://www.chess.com"]